bitfinex/quotes_BTCUSD_20230404
["timestamp","ask_amount","ask_price","bid_price","bid_amount"]
[1680634312976,0.49431326,28180.0,28179.0,0.58945689]
[1680634313186,0.49431326,28180.0,28179.0,0.37681681]
[1680634313398,0.49431326,28180.0,28179.0,0.41936008]
[1680634313610,0.49431326,28180.0,28179.0,0.5894561]
[1680634313823,0.49431326,28180.0,28179.0,0.5614561]
[1680634314026,0.49431326,28180.0,28179.0,0.5894561]
[1680634315594,0.49431326,28180.0,28179.0,0.37693602]
[1680634315782,0.49431326,28180.0,28179.0,0.37681602]
[1680634316901,0.49315946,28180.0,28179.0,0.37693602]
[1680634318197,0.49315946,28180.0,28179.0,0.5895761]
[1680634318561,0.10625805,28180.0,28179.0,0.5895761]
[1680634318788,0.10625805,28180.0,28179.0,0.88088623]
[1680634318983,0.10625805,28180.0,28179.0,0.71079021]
[1680634319203,0.10625805,28180.0,28179.0,0.71091021]
[1680634319404,0.10625805,28180.0,28179.0,0.71079021]
[1680634319871,0.10625805,28180.0,28179.0,0.88087026]
[1680634320307,0.10625805,28180.0,28179.0,0.88087016]
[1680634320567,0.10625805,28180.0,28179.0,0.88086994]
[1680634321456,0.08565374,28180.0,28179.0,0.66822986]
[1680634321679,0.02409331,28180.0,28179.0,0.66822986]
[1680634322524,0.02409331,28180.0,28179.0,0.65127686]
[1680634323161,0.02409331,28180.0,28179.0,0.66820186]
[1680634326246,0.02409331,28180.0,28179.0,0.66796686]
[1680634328266,0.02409331,28180.0,28179.0,1.02267742]
[1680634330578,0.02409331,28180.0,28179.0,0.66796686]
[1680634330738,0.02409331,28180.0,28179.0,0.65127686]
[1680634330985,0.02409331,28180.0,28179.0,0.65139686]
[1680634332124,0.02409331,28180.0,28179.0,0.77892865]
[1680634332438,0.10446725,28180.0,28179.0,0.77892865]
[1680634333107,0.10446725,28180.0,28179.0,0.6259433]
[1680634333323,0.10446725,28180.0,28179.0,0.77880865]
[1680634333953,0.10446725,28180.0,28179.0,0.65127686]
[1680634334161,0.10446725,28180.0,28179.0,0.80127686]
[1680634334388,0.10446725,28180.0,28179.0,0.65127686]
[1680634335887,0.10446725,28180.0,28179.0,0.77881028]
[1680634336104,0.10446725,28180.0,28179.0,0.65127686]
[1680634337280,0.10446725,28180.0,28179.0,0.84383721]
[1680634337505,0.10446725,28180.0,28179.0,0.85964721]
[1680634338583,0.10446725,28180.0,28179.0,0.85982721]
[1680634339484,0.10446725,28180.0,28179.0,0.87402121]
[1680634339701,0.10446725,28180.0,28179.0,0.66138113]
[1680634340589,0.10446725,28180.0,28179.0,0.87396282]
[1680634340809,0.10446725,28180.0,28179.0,0.87396283]
[1680634341035,0.10446725,28180.0,28179.0,0.74161456]
[1680634341271,0.09806725,28180.0,28179.0,1.05207847]
[1680634341517,0.01769331,28180.0,28179.0,1.05207847]
[1680634341733,0.01769331,28180.0,28179.0,0.79685556]
[1680634341960,0.01769331,28180.0,28179.0,1.05190159]
[1680634342394,0.01769331,28180.0,28179.0,1.05208159]
[1680634342621,0.01769331,28180.0,28179.0,0.79703556]
[1680634343276,0.01769331,28180.0,28179.0,1.05204874]
[1680634344152,0.01769331,28180.0,28179.0,1.05204793]
[1680634344389,0.01769331,28180.0,28179.0,1.05204891]
[1680634344879,0.01769331,28180.0,28179.0,0.79703556]
[1680634345325,0.01769331,28180.0,28179.0,1.05204485]
[1680634347049,0.01769331,28180.0,28179.0,1.42949421]
[1680634347256,0.01769331,28180.0,28179.0,0.99662385]
[1680634347465,0.01769331,28180.0,28179.0,1.44592385]
[1680634347679,0.01769331,28180.0,28179.0,1.26398723]
[1680634347892,0.01769331,28180.0,28179.0,1.26404723]
[1680634349198,0.01769331,28180.0,28179.0,1.23604723]
[1680634349694,0.02379,28185.0,28184.0,1.4738]
[1680634349926,0.02379,28185.0,28184.0,2.82687756]
[1680634350147,0.02379,28185.0,28184.0,3.18106519]
[1680634350609,0.02379,28185.0,28184.0,3.22678148]
[1680634351276,0.02379,28185.0,28184.0,3.48134127]
[1680634351493,0.02379,28185.0,28184.0,3.45334127]
[1680634351714,0.02379,28185.0,28184.0,3.48134127]
[1680634351937,0.02379,28185.0,28184.0,3.39804489]
[1680634352195,0.02379,28185.0,28184.0,3.48144885]
[1680634352405,0.02379,28185.0,28184.0,3.42604489]
[1680634353075,0.02379,28185.0,28184.0,3.48143852]
[1680634353301,0.02379,28185.0,28184.0,3.42603489]
[1680634354711,0.02379,28185.0,28184.0,3.39803489]
[1680634354894,0.02379,28185.0,28184.0,3.42603489]
[1680634355095,0.01809,28185.0,28184.0,3.79791489]
[1680634355300,0.01809,28185.0,28184.0,3.54208885]
[1680634356117,0.01809,28185.0,28184.0,3.93600574]
[1680634356340,0.02299,28186.0,28184.0,3.99140517]
[1680634356569,0.02299,28186.0,28185.0,1.19439856]
[1680634356793,0.02299,28186.0,28185.0,1.37874956]
[1680634357021,0.02299,28186.0,28185.0,1.39646585]
[1680634357258,0.02299,28186.0,28185.0,1.40496585]
[1680634358126,0.02299,28186.0,28185.0,1.43296585]
[1680634358345,0.02299,28186.0,28185.0,1.61033585]
[1680634358594,0.02299,28186.0,28185.0,1.61045585]
[1680634358811,0.02299,28186.0,28185.0,1.61033585]
[1680634359447,0.02299,28186.0,28185.0,1.82199105]
[1680634361093,0.02299,28186.0,28185.0,1.81393993]
[1680634361300,0.02299,28186.0,28185.0,1.60228473]
[1680634361734,0.02299,28186.0,28185.0,1.81393993]
[1680634362164,0.02299,28186.0,28185.0,1.60228473]
[1680634362381,0.02299,28186.0,28185.0,1.81393993]
[1680634363046,0.02299,28186.0,28185.0,1.60228473]
[1680634364538,0.02299,28186.0,28185.0,1.58456844]
[1680634366182,0.02299,28188.0,28187.0,1.8738]
[1680634366419,0.02299,28188.0,28187.0,3.44469956]
[1680634366636,0.02299,28188.0,28187.0,3.89863077]
[1680634366862,0.02299,28188.0,28187.0,3.95408247]
[1680634367089,0.02299,28188.0,28187.0,3.98208247]
[1680634367333,0.02299,28188.0,28187.0,3.95408247]
[1680634367595,0.02299,28194.0,28193.0,1.4738]
[1680634367823,0.02299,28194.0,28193.0,2.37401156]
[1680634368043,0.02299,28194.0,28193.0,2.84411156]
[1680634368721,0.02299,28194.0,28193.0,2.95671335]
[1680634368951,0.02299,28194.0,28193.0,2.87211156]
[1680634369573,0.02299,28194.0,28193.0,2.84411156]
[1680634369784,0.02299,28194.0,28193.0,2.87211156]
[1680634375612,0.02299,28194.0,28193.0,3.29639205]
[1680634376046,0.02299,28194.0,28193.0,2.87211156]
[1680634376509,0.09052708,28194.0,28193.0,2.87211156]
[1680634376725,0.09052708,28194.0,28193.0,3.20906333]
[1680634376944,0.09052708,28194.0,28193.0,2.87211156]
[1680634379218,0.09052708,28194.0,28193.0,1.77211156]
[1680634380739,0.09052708,28194.0,28193.0,1.77163386]
[1680634381378,0.09052708,28194.0,28193.0,1.77323386]
[1680634381580,0.09052708,28194.0,28193.0,1.77163386]
[1680634382008,0.09052708,28194.0,28193.0,1.74363386]
[1680634382218,0.09052708,28194.0,28193.0,1.77163386]
[1680634382866,0.09052708,28194.0,28193.0,1.77893386]
[1680634383080,0.09052708,28194.0,28193.0,1.77163386]
[1680634384017,0.09052708,28194.0,28193.0,0.649975]
[1680634384202,0.65578092,28194.0,28193.0,0.11946]
[1680634384400,0.55258011,28194.0,28193.0,0.11946]
[1680634384610,0.55258011,28194.0,28190.0,0.00018]
[1680634384814,0.64685392,28194.0,28193.0,0.17016]
[1680634385030,0.55543011,28194.0,28190.0,0.17034]
[1680634385252,0.55543011,28194.0,28193.0,0.17816]
[1680634385253,0.50695711,28194.0,28193.0,0.17816]
[1680634385453,0.55617211,28194.0,28193.0,0.008]
[1680634385656,0.55617211,28194.0,28193.0,0.17816]
[1680634386055,0.55417211,28194.0,28193.0,0.17016]
[1680634386264,0.55517211,28194.0,28193.0,0.17816]
[1680634386484,0.55517211,28194.0,28193.0,0.008]
[1680634386660,0.55517211,28194.0,28193.0,0.17816]
[1680634386807,0.55517211,28194.0,28193.0,0.18666]
[1680634387454,0.51225711,28194.0,28193.0,0.18666]
[1680634387673,0.55358511,28194.0,28193.0,0.18666]
[1680634388114,0.51225711,28194.0,28193.0,0.18666]
[1680634392300,0.09803708,28194.0,28193.0,0.200847]
[1680634392519,0.09803708,28194.0,28193.0,0.203237]
[1680634392943,0.09803708,28194.0,28193.0,0.217424]
[1680634393372,0.09803708,28194.0,28193.0,1.1170874]
[1680634393586,0.09803708,28194.0,28193.0,1.1170274]
[1680634394452,0.09703708,28194.0,28193.0,1.1090274]
[1680634394653,0.09897708,28194.0,28193.0,1.1280274]
[1680634394866,0.09882708,28194.0,28193.0,1.1280274]
[1680634395284,0.09882708,28194.0,28193.0,1.1281474]
[1680634395512,0.03129,28194.0,28193.0,1.1703283]
[1680634395719,0.03129,28194.0,28193.0,1.33953188]
[1680634395934,0.03129,28194.0,28193.0,1.1703283]
[1680634396145,0.03129,28194.0,28193.0,1.33953188]
[1680634396991,0.03129,28194.0,28193.0,1.21262919]
[1680634398936,0.03129,28194.0,28193.0,1.21274919]
[1680634399367,0.03129,28194.0,28193.0,1.42425367]
[1680634400001,0.03129,28194.0,28193.0,1.42413367]
[1680634400420,0.03129,28194.0,28193.0,1.19844219]
[1680634400634,0.03129,28194.0,28193.0,1.32568941]
[1680634400866,0.03129,28194.0,28193.0,1.33987641]
[1680634401079,0.02929,28194.0,28193.0,1.19362919]
[1680634401288,0.03129,28194.0,28193.0,1.21262919]
[1680634402364,0.02929,28194.0,28193.0,1.19362919]
[1680634402728,0.02929,28194.0,28193.0,1.17944219]
[1680634403219,0.03129,28194.0,28193.0,1.21262919]
[1680634404915,0.03129,28194.0,28193.0,1.32332962]
[1680634405120,0.0315,28194.0,28193.0,0.49408101]
[1680634405333,0.43310996,28194.0,28193.0,0.28251436]
[1680634405495,0.49519233,28194.0,28193.0,0.28251436]
[1680634407326,0.49519233,28194.0,28193.0,0.40979179]
[1680634408195,0.49519233,28194.0,28193.0,0.19766]
[1680634408604,0.49519233,28194.0,28193.0,0.28251436]
[1680634409475,0.49486428,28194.0,28193.0,0.28263436]
[1680634410163,0.09325432,28194.0,28193.0,0.28263436]
[1680634410379,0.09325432,28194.0,28193.0,0.28251436]
[1680634411075,0.09325432,28194.0,28193.0,0.28263436]
[1680634411494,0.09205432,28194.0,28193.0,0.28263436]
[1680634411943,0.09205432,28194.0,28193.0,0.27413436]
[1680634412166,0.53928612,28194.0,28193.0,0.27413436]
[1680634412815,0.53728612,28194.0,28193.0,0.25507436]
[1680634413051,0.53949612,28194.0,28193.0,0.27201436]
[1680634413279,0.53749612,28194.0,28193.0,0.25501436]
[1680634413525,0.53949612,28194.0,28193.0,0.27201436]
[1680634415281,0.53949612,28194.0,28193.0,0.28620136]
[1680634415282,0.09226432,28194.0,28193.0,0.28620136]
[1680634415482,0.09205432,28194.0,28193.0,0.29713336]
[1680634415789,0.09205432,28194.0,28193.0,0.28051436]
[1680634416027,0.09205432,28194.0,28193.0,0.28056339]
[1680634416247,0.09205432,28194.0,28193.0,0.32293743]
[1680634417205,0.09205432,28194.0,28193.0,0.74786402]
[1680634418118,0.09205432,28194.0,28193.0,0.73203302]
[1680634419758,0.09205432,28194.0,28193.0,0.32293743]
[1680634425500,0.09205432,28194.0,28193.0,0.49214101]
[1680634425673,0.09205432,28194.0,28193.0,0.86350957]
[1680634425889,0.09205432,28194.0,28193.0,0.86280696]
[1680634426312,0.09205432,28194.0,28193.0,0.73536514]
[1680634426513,0.02997195,28194.0,28193.0,0.6778124]
[1680634427527,0.08833773,28194.0,28193.0,1.28649213]
[1680634427728,0.08833773,28194.0,28193.0,1.30148013]
[1680634428397,0.08833773,28194.0,28193.0,1.17403829]
[1680634429542,0.02997195,28194.0,28193.0,1.17403829]
[1680634431321,0.02867195,28194.0,28193.0,1.17403829]
[1680634433054,0.02857375,28194.0,28193.0,1.17403829]
[1680634433277,0.02857375,28194.0,28193.0,1.17468929]
[1680634433504,0.02857375,28194.0,28193.0,1.15905029]
[1680634433958,0.02857375,28194.0,28193.0,1.17537729]
[1680634434171,0.02857375,28194.0,28193.0,1.15905029]
[1680634434823,0.02857375,28194.0,28193.0,1.15917029]
[1680634435069,0.02857375,28194.0,28193.0,0.36498358]
[1680634435710,0.08253075,28194.0,28193.0,0.36498358]
[1680634435925,0.08253075,28194.0,28193.0,0.49246316]
[1680634436164,0.08253075,28194.0,28193.0,0.36498358]
[1680634439221,0.08253075,28194.0,28193.0,0.93828157]
[1680634439424,0.02857375,28194.0,28193.0,0.74345009]
[1680634440432,0.0797493,28194.0,28193.0,0.72677709]
[1680634442977,0.0797493,28194.0,28193.0,0.72689709]
[1680634443396,0.0797493,28194.0,28193.0,0.72677709]
[1680634446191,0.0797493,28194.0,28193.0,0.93828157]
[1680634446675,0.0797493,28194.0,28193.0,0.93913436]
[1680634447312,0.0797493,28194.0,28193.0,0.76907799]
[1680634457867,0.07968105,28194.0,28193.0,0.76907799]
[1680634458092,0.12276405,28194.0,28193.0,0.40728448]
[1680634458325,0.12376205,28194.0,28193.0,0.40728448]
[1680634458549,0.48389192,28194.0,28193.0,0.39866448]
[1680634458778,0.48389192,28194.0,28193.0,0.31473741]
[1680634458779,0.48742584,28194.0,28193.0,0.31473741]
[1680634459035,0.48742584,28194.0,28193.0,0.10205832]
[1680634459282,0.48742584,28194.0,28193.0,0.18716]
[1680634459498,0.48542584,28194.0,28193.0,0.17016]
[1680634459717,0.48742584,28194.0,28193.0,0.18516]
[1680634460187,0.48542584,28194.0,28193.0,0.17016]
[1680634460374,0.23546273,28194.0,28193.0,0.17116]
[1680634460651,1.370873,28194.0,28193.0,0.17116]
[1680634461553,1.370873,28194.0,28193.0,0.001]
[1680634462873,1.370873,28194.0,28193.0,0.17116]
[1680634463357,1.370873,28194.0,28193.0,0.001]
[1680634463547,1.35805594,28194.0,28193.0,0.001]
[1680634463770,1.31969745,28194.0,28193.0,0.001]
[1680634467484,0.91279774,28194.0,28193.0,0.001]
[1680634467703,1.35451383,28194.0,28193.0,0.001]
[1680634467943,1.2497047,28194.0,28193.0,0.001]
[1680634468622,1.68078719,28194.0,28193.0,0.001]
[1680634468848,1.2497047,28194.0,28193.0,0.001]
[1680634469736,1.58402711,28194.0,28193.0,0.001]
[1680634470635,1.2497047,28194.0,28193.0,0.001]
[1680634470858,1.68668298,28194.0,28193.0,0.001]
[1680634471090,1.2497047,28194.0,28193.0,0.001]
[1680634471305,1.65596586,28194.0,28193.0,0.001]
[1680634471526,1.2497047,28194.0,28193.0,0.001]
[1680634475541,1.2494947,28194.0,28191.0,0.17016]
[1680634475796,0.3776,28192.0,28190.0,0.17028]
[1680634476014,1.13042913,28191.0,28190.0,0.00012]
[1680634476236,1.13042913,28191.0,28189.0,0.00018]
[1680634476456,0.419402,28190.0,28189.0,0.17016]
[1680634476677,0.53393271,28190.0,28189.0,0.00018]
[1680634476895,0.53393271,28190.0,28189.0,0.17034]
[1680634477136,0.53393271,28190.0,28189.0,0.17134]
[1680634477359,0.53393271,28190.0,28189.0,0.00018]
[1680634477524,0.54793271,28190.0,28189.0,0.17134]
[1680634478289,0.90264327,28190.0,28189.0,0.17134]
[1680634478505,1.35456009,28190.0,28189.0,0.17134]
[1680634482715,1.39133558,28190.0,28189.0,0.17134]
[1680634482913,1.39133558,28190.0,28189.0,0.1714]
[1680634482914,1.69133558,28190.0,28189.0,0.1714]
[1680634483438,1.69133558,28190.0,28189.0,0.00118]
[1680634483634,1.69133558,28190.0,28189.0,0.001]
[1680634484802,1.23941876,28190.0,28189.0,0.001]
[1680634485184,1.64112401,28190.0,28189.0,0.001]
[1680634486498,1.23941876,28190.0,28189.0,0.001]
[1680634486718,1.6311242,28190.0,28189.0,0.001]
[1680634490911,1.51651149,28190.0,28189.0,0.001]
[1680634492007,0.78800093,28190.0,28189.0,0.001]
[1680634492227,0.74619893,28190.0,28189.0,0.001]
[1680634492453,0.74619893,28190.0,28189.0,0.00112]
[1680634494445,0.78958193,28190.0,28189.0,0.001]
[1680634494662,0.74619893,28190.0,28189.0,0.001]
[1680634497387,0.78625593,28190.0,28189.0,0.001]
[1680634498264,0.74619893,28190.0,28189.0,0.001]
[1680634499142,0.78853593,28190.0,28189.0,0.001]
[1680634499789,0.74619893,28190.0,28189.0,0.001]
[1680634501361,0.05449349,28190.0,28189.0,0.001]
[1680634501576,0.05077549,28190.0,28189.0,0.32048032]
[1680634501801,0.05069353,28190.0,28189.0,0.49076032]
[1680634504438,0.03877549,28190.0,28189.0,0.54015941]
[1680634504653,0.03877549,28190.0,28189.0,0.62512032]
[1680634505093,0.03877549,28190.0,28189.0,0.54015941]
[1680634505630,0.03877549,28190.0,28189.0,0.54975941]
[1680634506273,0.03877549,28190.0,28189.0,0.63478688]
[1680634506489,0.03877549,28190.0,28189.0,0.54975941]
[1680634506706,0.03877549,28190.0,28189.0,0.69975941]
[1680634507183,0.03877549,28190.0,28189.0,0.88625176]
[1680634508049,0.03877549,28190.0,28189.0,0.86984676]
[1680634508883,0.03677549,28190.0,28189.0,0.86184676]
[1680634509102,0.03877549,28190.0,28189.0,0.86984676]
[1680634509514,0.03877549,28190.0,28189.0,0.71973007]
[1680634510091,0.03877549,28190.0,28189.0,0.69964272]
[1680634510293,0.03877549,28190.0,28189.0,0.54964272]
[1680634510876,0.03877549,28190.0,28189.0,0.71973007]
[1680634513135,0.03877549,28190.0,28189.0,0.59226935]
[1680634514363,0.03877549,28190.0,28189.0,0.71974053]
[1680634515124,0.03877549,28190.0,28189.0,0.71986053]
[1680634515351,0.03877549,28190.0,28189.0,0.49393853]
[1680634515577,0.50845279,28190.0,28189.0,0.32373118]
[1680634515801,0.50845279,28190.0,28189.0,0.32385118]
[1680634516034,0.50987079,28190.0,28189.0,0.32385118]
[1680634516258,0.54978579,28190.0,28189.0,0.32385118]
[1680634516482,0.50845279,28190.0,28189.0,0.32385118]
[1680634516716,0.54868279,28190.0,28189.0,0.32385118]
[1680634516917,0.55053079,28190.0,28189.0,0.32385118]
[1680634517174,0.50845279,28190.0,28189.0,0.32385118]
[1680634517624,0.03877549,28190.0,28189.0,0.49393853]
[1680634517849,0.03877549,28190.0,28189.0,0.32373118]
[1680634520169,0.05897549,28190.0,28189.0,0.32373118]
[1680634521761,0.05897549,28190.0,28189.0,0.28123716]
[1680634521762,0.50079047,28190.0,28189.0,0.28123716]
[1680634521972,0.50079047,28190.0,28189.0,0.28135716]
[1680634522416,0.50079047,28190.0,28189.0,0.27285716]
[1680634522633,0.50079047,28190.0,28189.0,0.27291716]
[1680634522822,0.50079047,28190.0,28189.0,0.27285716]
[1680634523424,0.55117422,28190.0,28189.0,0.27285716]
[1680634523629,0.55117422,28190.0,28189.0,0.008]
[1680634523630,1.25154132,28190.0,28189.0,0.008]
[1680634523808,1.25133132,28190.0,28189.0,0.17822]
[1680634524184,1.25154132,28190.0,28189.0,0.008]
[1680634524417,0.41872359,28189.0,28188.0,0.17022]
[1680634524658,0.54034159,28189.0,28188.0,0.17034]
[1680634524880,0.44034159,28189.0,28188.0,0.17022]
[1680634525537,0.48234863,28188.0,28187.0,0.1018352]
[1680634525753,0.50417763,28188.0,28186.0,0.12759118]
[1680634525992,0.0201,28187.0,28186.0,0.12747118]
[1680634526423,0.0201,28187.0,28186.0,0.29769118]
[1680634526614,0.0201,28187.0,28186.0,0.29781118]
[1680634526816,0.0201,28187.0,28186.0,0.30481118]
[1680634527376,0.0201,28187.0,28186.0,0.29781118]
[1680634527582,0.13353151,28187.0,28186.0,0.30481118]
[1680634527797,0.13253151,28187.0,28186.0,0.29781118]
[1680634527998,0.13353151,28187.0,28186.0,0.30481118]
[1680634528213,0.04981495,28187.0,28186.0,0.30481118]
[1680634528894,0.04881495,28187.0,28186.0,0.29781118]
[1680634529100,0.04981495,28187.0,28186.0,0.30481118]
[1680634529311,0.04981495,28187.0,28186.0,0.55486147]
[1680634529312,0.04881495,28187.0,28186.0,0.55486147]
[1680634529533,0.04981495,28187.0,28186.0,0.61585764]
[1680634529765,0.04981495,28187.0,28186.0,0.62635564]
[1680634529766,0.04881495,28187.0,28186.0,0.62635564]
[1680634529981,0.04981495,28187.0,28186.0,0.63335564]
[1680634530192,0.04981495,28187.0,28186.0,0.62635564]
[1680634530408,0.0201,28187.0,28186.0,0.62635564]
[1680634530611,0.0201,28187.0,28186.0,0.82736212]
[1680634530612,0.0211,28187.0,28186.0,0.82736212]
[1680634530834,0.0249,28187.0,28186.0,0.66645277]
[1680634531505,0.05361495,28187.0,28186.0,0.66645277]
[1680634531715,0.05361495,28187.0,28186.0,0.65027477]
[1680634532151,0.05461495,28187.0,28186.0,0.65727477]
[1680634532574,0.13771903,28187.0,28186.0,0.67361977]
[1680634532778,0.13771903,28187.0,28186.0,0.67447077]
[1680634532993,0.13771903,28187.0,28186.0,0.61566518]
[1680634533195,0.13771903,28187.0,28186.0,0.74325449]
[1680634534117,0.13771903,28187.0,28186.0,0.74331449]
[1680634534324,0.13271903,28187.0,28186.0,0.74331449]
[1680634534539,0.13271903,28187.0,28186.0,0.61584518]
[1680634534751,0.13271903,28187.0,28186.0,0.74331742]
[1680634535175,0.13271903,28187.0,28186.0,0.7432625]
[1680634535384,0.13271903,28187.0,28186.0,0.7431425]
[1680634535602,0.0209,28187.0,28186.0,0.7431425]
[1680634536041,0.0209,28187.0,28186.0,0.7432625]
[1680634536483,0.13413804,28187.0,28186.0,0.7432625]
[1680634536899,0.13271904,28187.0,28186.0,0.7432625]
[1680634537112,0.13413804,28187.0,28186.0,0.7432625]
[1680634537576,0.0209,28187.0,28186.0,0.7433225]
[1680634537786,0.0209,28187.0,28186.0,0.61584518]
[1680634538829,0.0209,28187.0,28186.0,0.61578518]
[1680634539251,0.0209,28187.0,28186.0,0.61584518]
[1680634540385,0.0209,28187.0,28186.0,0.61578518]
[1680634540621,0.0209,28187.0,28186.0,0.27065053]
[1680634540622,0.49195636,28187.0,28186.0,0.27065053]
[1680634540853,0.49195636,28187.0,28186.0,0.00712]
[1680634541081,1.01575636,28187.0,28186.0,0.007]
[1680634541773,1.01596636,28187.0,28186.0,0.007]
[1680634541991,1.35793881,28187.0,28186.0,0.007]
[1680634542446,0.1,28186.0,28185.0,0.17022]
[1680634542642,0.68620828,28186.0,28185.0,0.17022]
[1680634543824,1.10174324,28186.0,28185.0,0.17022]
[1680634544082,1.4644538,28186.0,28185.0,0.17122]
[1680634544245,1.4644538,28186.0,28185.0,0.001]
[1680634544452,1.3644538,28186.0,28185.0,0.17122]
[1680634544665,1.24891884,28186.0,28185.0,0.001]
[1680634544874,1.71313096,28186.0,28185.0,0.001]
[1680634546191,1.57930946,28186.0,28185.0,0.001]
[1680634546404,1.24891884,28186.0,28185.0,0.001]
[1680634547522,0.3738,28184.0,28180.0,0.17046]
[1680634547747,0.0249,28181.0,28180.0,0.00018]
[1680634547969,0.79993056,28181.0,28180.0,0.00018]
[1680634548188,1.09993056,28181.0,28180.0,0.00018]
[1680634548847,1.09993056,28181.0,28180.0,0.17028]
[1680634549061,1.21572932,28181.0,28180.0,0.00018]
[1680634549356,1.62603418,28181.0,28180.0,0.00018]
[1680634549576,1.62603418,28181.0,28180.0,0.17028]
[1680634549789,1.62603418,28181.0,28180.0,0.00018]
[1680634550005,1.64603418,28181.0,28180.0,0.00018]
[1680634550236,1.64603418,28181.0,28180.0,0.17028]
[1680634550463,1.62603418,28181.0,28180.0,0.00018]
[1680634550689,1.65303418,28181.0,28179.0,0.00018]
[1680634550910,1.23116062,28181.0,28180.0,0.17028]
[1680634551160,0.1,28180.0,28178.0,0.17046]
[1680634551372,0.439613,28179.0,28177.0,0.17046]
[1680634551587,0.81777281,28178.0,28177.0,0.00018]
[1680634551812,0.81919181,28178.0,28177.0,0.00018]
[1680634552027,0.81919181,28178.0,28177.0,0.17046]
[1680634552897,0.90141579,28178.0,28177.0,0.00018]
[1680634553143,0.81919181,28178.0,28177.0,0.17046]
[1680634553367,0.82619181,28178.0,28177.0,0.00018]
[1680634553589,0.82619181,28178.0,28177.0,0.17046]
[1680634553812,0.82619181,28178.0,28177.0,0.00018]
[1680634554504,0.82619181,28178.0,28176.0,0.02311]
[1680634554733,0.0202,28177.0,28176.0,0.02317]
[1680634554954,0.021619,28177.0,28176.0,0.02299]
[1680634555192,0.021619,28177.0,28176.0,0.02317]
[1680634556394,0.022619,28177.0,28176.0,0.02317]
[1680634557739,0.08631207,28177.0,28176.0,0.02317]
[1680634557951,0.12888007,28177.0,28176.0,0.02317]
[1680634558167,0.08631207,28177.0,28176.0,0.02317]
[1680634558588,0.08531207,28177.0,28176.0,0.02317]
[1680634558805,0.09231207,28177.0,28176.0,0.02317]
[1680634559020,0.08531207,28177.0,28176.0,0.02317]
[1680634559255,0.09931207,28177.0,28176.0,0.02317]
[1680634559993,0.14155307,28177.0,28176.0,0.02299]
[1680634560189,0.18914766,28177.0,28176.0,0.02299]
[1680634560421,1.38668147,28177.0,28176.0,0.02299]
[1680634560646,1.72617081,28177.0,28176.0,0.02299]
[1680634560859,1.71217081,28177.0,28176.0,0.02299]
[1680634561101,1.72617081,28177.0,28176.0,0.02299]
[1680634561540,1.71217081,28177.0,28176.0,0.02299]
[1680634561777,1.73917081,28177.0,28176.0,0.02299]
[1680634561991,1.24674722,28177.0,28176.0,0.02299]
[1680634562430,1.60274895,28177.0,28176.0,0.02299]
[1680634563088,1.27374722,28177.0,28176.0,0.02299]
[1680634563306,1.64403129,28177.0,28176.0,0.02299]
[1680634563768,1.24674722,28177.0,28176.0,0.02299]
[1680634563987,1.72083491,28177.0,28176.0,0.02299]
[1680634564215,1.24674722,28177.0,28176.0,0.014149]
[1680634564461,0.15,28176.0,28173.0,0.02299]
[1680634564685,0.89871056,28174.0,28173.0,0.02299]
[1680634564966,1.41903256,28174.0,28173.0,0.02299]
[1680634565625,1.48612258,28174.0,28173.0,0.016281]
[1680634565852,1.59743575,28174.0,28173.0,0.016281]
[1680634566510,0.15,28173.0,28169.0,0.02299]
[1680634566751,0.0201,28170.0,28169.0,0.02299]
[1680634566992,0.79431356,28170.0,28169.0,0.02299]
[1680634567215,1.17573272,28170.0,28169.0,0.02299]
[1680634567655,1.17573272,28170.0,28169.0,0.01639534]
[1680634568147,1.20273272,28170.0,28169.0,0.01639534]
[1680634568800,1.26797768,28170.0,28169.0,0.00987084]
[1680634569015,1.59600948,28170.0,28169.0,0.00987084]
[1680634569356,1.56900948,28170.0,28169.0,0.00987084]
[1680634569715,1.59600948,28170.0,28169.0,0.00341404]
[1680634569987,1.15955852,28170.0,28169.0,0.00341404]
[1680634570198,1.18655852,28170.0,28169.0,0.00341404]
[1680634570413,1.28022317,28170.0,28169.0,0.00341404]
[1680634570654,1.30722317,28170.0,28168.0,0.02299]
[1680634570869,1.09127456,28169.0,28168.0,0.02299]
[1680634571090,1.09837456,28169.0,28168.0,0.02299]
[1680634571303,1.46175323,28169.0,28168.0,0.02299]
[1680634571520,1.62824431,28169.0,28168.0,0.02299]
[1680634571739,1.31494106,28169.0,28168.0,0.01663323]
[1680634573466,1.34194106,28169.0,28168.0,0.01663323]
[1680634573685,1.31494106,28169.0,28168.0,0.01663323]
[1680634573903,1.34194106,28169.0,28168.0,0.01663323]
[1680634574123,1.31494106,28169.0,28168.0,0.01663323]
[1680634574360,1.34194106,28169.0,28168.0,0.01663323]
[1680634574614,1.34194106,28169.0,28163.0,0.02108]
[1680634574615,0.15,28168.0,28163.0,0.02108]
[1680634574845,0.0129,28164.0,28163.0,0.0209]
[1680634575091,0.432234,28164.0,28163.0,0.02102]
[1680634575307,0.432234,28164.0,28163.0,0.02108]
[1680634575502,0.87158008,28164.0,28163.0,0.02108]
[1680634575974,0.87158008,28164.0,28163.0,0.02102]
[1680634576195,0.89158008,28164.0,28163.0,0.02102]
[1680634577566,0.89158008,28164.0,28163.0,0.02084818]
[1680634577786,0.064114,28164.0,28163.0,0.19112818]
[1680634577974,0.02,28164.0,28163.0,0.19962818]
[1680634578219,0.063252,28164.0,28163.0,0.19962818]
[1680634578448,0.041828,28164.0,28163.0,0.19962818]
[1680634578890,0.061828,28164.0,28163.0,0.19962818]
[1680634579119,0.02,28164.0,28163.0,0.19962818]
[1680634579670,0.02142,28164.0,28163.0,0.19962818]
[1680634581229,0.02,28164.0,28163.0,0.19962818]
[1680634582243,0.02142,28164.0,28163.0,0.19962818]
[1680634583927,0.064603,28164.0,28163.0,0.19962818]
[1680634584123,0.02142,28164.0,28163.0,0.19962818]
[1680634584586,0.36784374,28164.0,28163.0,0.19962818]
[1680634584795,0.55454007,28164.0,28163.0,0.19962818]
[1680634585215,0.41101274,28164.0,28163.0,0.19962818]
[1680634585668,0.36805374,28164.0,28163.0,0.19962818]
[1680634587419,0.41001574,28164.0,28163.0,0.19962818]
[1680634587638,0.47276302,28164.0,28163.0,0.19962818]
[1680634588301,0.12491928,28164.0,28163.0,0.19962818]
[1680634588525,0.08274728,28164.0,28163.0,0.40237353]
[1680634591679,0.08274728,28164.0,28163.0,0.19962818]
[1680634591898,0.51315476,28164.0,28163.0,0.19962818]
[1680634592105,0.47058676,28164.0,28163.0,0.19962818]